[Event "Niedersachsen-ch Meister 2024"]
[Site "Verden Aller"]
[Date "2024.01.06"]
[Round "6.3"]
[White "Voege, Tobias"]
[Black "Gentemann, Moritz"]
[Result "1/2-1/2"]
[ECO "D36"]
[WhiteElo "2283"]
[BlackElo "2239"]
[Annotator "RC"]
[PlyCount "241"]
[EventDate "2024.01.01"]
[EventType "swiss"]
[EventCountry "GER"]
[SourceTitle "playchess.com"]
[Source "ChessBase"]
[SourceQuality "1"]
[TimeControl "40/5400+30:1800+30"]

1. d4 {[%emt 0:00:07]} Nf6 {[%emt 0:03:24]} 2. c4 {[%emt 0:00:45]} e6 {[%emt 0:00:08]} 3. Nc3 {[%emt 0:00:25]} d5 {[%emt 0:00:11]} 4. cxd5 {[%emt 0:00:38]} exd5 {[%emt 0:00:03]} 5. Bg5 {[%emt 0:00:43]} c6 {[%emt 0:00:11]} 6. e3 {[%emt 0:00:12]} h6 {[%emt 0:00:16]} 7. Bh4 {[%emt 0:00:16]} Be7 {[%emt 0:00:13]} 8. Bd3 {[%emt 0:00:28]} O-O {[%emt 0:00:16]} 9. Qc2 {[%emt 0:00:51]} Re8 {[%emt 0:00:16]} 10. Nge2 {[%emt 0:00:40]} a5 {[%emt 0:00:14]} 11. O-O {[%emt 0:00:56]} Na6 {[%emt 0:00:09]} 12. a3 {[%emt 0:01:10]} Nc7 {[%emt 0:00:08]} 13. Na4 {[%emt 0:13:11]} Ne6 {[%emt 0:04:48]} 14. Nc5 {[%emt 0:10:42]} Ng5 {[%emt 0:31:50]} 15. b4 {[%emt 0:09:36]} b6 {[%emt 0:14:00]} 16. Na4 {[%emt 0:01:22]} Bd7 {[%emt 0:02:20]} 17. bxa5 {[%emt 0:06:54]} Rxa5 {[%emt 0:00:52]} 18. Rfb1 {[%emt 0:01:33]} b5 {[%emt 0:00:43]} 19. Nc5 {[%emt 0:00:52]} Qa8 {[%emt 0:09:52]} 20. Rb3 {[%emt 0:14:54]} Bxc5 {[%emt 0:04:49]} 21. Qxc5 {[%emt 0:01:18]} Nfe4 {[%emt 0:00:35]} 22. Qc1 {[%emt 0:01:35]} Nd6 {[%emt 0:01:08]} 23. f3 {[%emt 0:04:29]} Nc4 {[%emt 0:09:52]} 24. Be1 {[%emt 0:03:25]} Ra7 {[%emt 0:01:24]} 25. h4 {[%emt 0:03:38]} Ne6 {[%emt 0:01:25]} 26. e4 {[%emt 0:01:36]} c5 {[%emt 0:05:06]} 27. exd5 {[%emt 0:08:44]} Qxd5 {[%emt 0:00:23]} 28. Be4 {[%emt 0:00:55]} Qd6 {[%emt 0:01:28]} 29. Qd1 {[%emt 0:06:31]} cxd4 {[%emt 0:03:27]} 30. Rd3 {[%emt 0:04:18]} Nb2 {[%emt 0:00:57]} 31. Rxd4 {[%emt 0:00:33]} Nxd4 {[%emt 0:02:39]} 32. Qxd4 {[%emt 0:00:11]} Qxd4+ {[%emt 0:00:12]} 33. Nxd4 {[%emt 0:00:03]} Nc4 {[%emt 0:01:30]} 34. Bb4 {[%emt 0:00:14]} g6 {[%emt 0:00:53]} 35. Rc1 {[%emt 0:01:28]} Rc8 {[%emt 0:01:04]} 36. Rc3 {[%emt 0:01:35]} Nd6 {[%emt 0:00:39]} 37. Nc6 {[%emt 0:01:10]} Bxc6 {[%emt 0:00:28]} 38. Rxc6 {[%emt 0:00:44]} Rxc6 {[%emt 0:00:34]} 39. Bxc6 {[%emt 0:00:04]} Nc4 {[%emt 0:00:04]} 40. Bxb5 {[%emt 0:00:13]} Nxa3 {[%emt 0:00:13]} 41. Bd3 {[%emt 0:03:00]} Rd7 {[%emt 0:02:04]} 42. Bxg6 {[%emt 0:01:26]} fxg6 {[%emt 0:00:10]} 43. Bxa3 {[%emt 0:00:04]} Kf7 {[%emt 0:00:17]} 44. Kf2 {[%emt 0:10:26]} Rd2+ {[%emt 0:01:20]} 45. Kg3 {[%emt 0:00:20]} h5 {[%emt 0:00:17]} 46. Bc1 {[%emt 0:03:32]} Rc2 {[%emt 0:00:14]} 47. Bh6 {[%emt 0:01:49]} Ke6 {[%emt 0:00:07]} 48. Kh3 {[%emt 0:01:01]} Ke5 {[%emt 0:02:31]} 49. Bg7+ {[%emt 0:02:17]} Kd5 {[%emt 0:00:12]} 50. g4 {[%emt 0:02:27]} Rc7 {[%emt 0:02:44]} 51. Bh8 {[%emt 0:02:07]} Rh7 {[%emt 0:00:53]} 52. Bb2 {[%emt 0:02:10]} Ke6 {[%emt 0:03:11]} 53. Kg3 {[%emt 0:00:41]} Rf7 {[%emt 0:00:25]} 54. Bc1 {[%emt 0:02:24]} Kd5 {[%emt 0:00:16]} 55. Bb2 {[%emt 0:00:49]} Kc4 {[%emt 0:00:14]} 56. Bc1 {[%emt 0:02:35]} Kd3 {[%emt 0:00:13]} 57. Bh6 {[%emt 0:00:22]} Ke2 {[%emt 0:01:09]} 58. f4 {[%emt 0:00:17]} Kd3 {[%emt 0:04:12]} 59. Kf3 {[%emt 0:00:38]} Kd4 {[%emt 0:00:18]} 60. Bg5 {[%emt 0:00:44]} Kd5 {[%emt 0:01:04]} 61. Bd8 {[%emt 0:01:17]} Ke6 {[%emt 0:02:44]} 62. Bg5 {[%emt 0:01:08]} Rb7 {[%emt 0:00:35]} 63. gxh5 {[%emt 0:00:10]} gxh5 {[%emt 0:00:04]} 64. Ke4 {[%emt 0:00:14]} Rb4+ {[%emt 0:00:10]} 65. Ke3 {[%emt 0:00:19]} Kf5 {[%emt 0:00:12]} 66. Ke2 {[%emt 0:00:49]} Ke4 {[%emt 0:00:14]} 67. Ke1 {[%emt 0:00:16]} Rb2 {[%emt 0:01:43]} 68. Kd1 {[%emt 0:00:40]} Rb5 {[%emt 0:08:06]} 69. Ke2 {[%emt 0:00:36]} Rd5 {[%emt 0:00:35]} 70. Kf2 {[%emt 0:00:37]} Kf5 {[%emt 0:00:50]} 71. Ke3 {[%emt 0:00:27]} Rd6 {[%emt 0:00:20]} 72. Kf3 {[%emt 0:00:14]} Re6 {[%emt 0:00:14]} 73. Kg3 {[%emt 0:00:43]} Re3+ {[%emt 0:00:36]} 74. Kg2 {[%emt 0:00:45]} Rb3 {[%emt 0:02:10]} 75. Kf2 {[%emt 0:00:09]} Kg4 {[%emt 0:00:15]} 76. Ke2 {[%emt 0:00:24]} Rf3 {[%emt 0:00:28]} 77. Bh6 {[%emt 0:00:47]} Rh3 {[%emt 0:03:26]} 78. Bg5 {[%emt 0:00:04]} Kf5 {[%emt 0:00:09]} 79. Kf2 {[%emt 0:00:26]} Ke4 {[%emt 0:00:15]} 80. Ke2 {[%emt 0:00:11]} Rh2+ {[%emt 0:00:20]} 81. Kd1 {[%emt 0:00:23]} Kf5 {[%emt 0:03:25]} 82. Ke1 {[%emt 0:00:07]} Kg4 {[%emt 0:00:06]} 83. Kf1 {[%emt 0:00:45]} Kf3 {[%emt 0:01:39]} 84. Ke1 {[%emt 0:00:08]} Ke4 {[%emt 0:01:05]} 85. Kd1 {[%emt 0:00:30]} Ra2 {[%emt 0:00:32]} 86. Ke1 {[%emt 0:00:10]} Rb2 {[%emt 0:00:40]} 87. Kf1 {[%emt 0:01:14]} Kf3 {[%emt 0:00:22]} 88. Ke1 {[%emt 0:00:04]} Rb5 {[%emt 0:00:16]} 89. Kd2 {[%emt 0:00:46]} Rd5+ {[%emt 0:00:15]} 90. Ke1 {[%emt 0:02:07]} Rb5 {[%emt 0:00:55]} 91. Kd2 {[%emt 0:00:08]} Ra5 {[%emt 0:00:20]} 92. Ke1 {[%emt 0:00:57]} Rd5 {[%emt 0:00:47]} 93. Bh6 {[%emt 0:00:08]} Rb5 {[%emt 0:01:49]} 94. Bg5 {[%emt 0:00:12]} Ra5 {[%emt 0:00:18]} 95. Kd2 {[%emt 0:00:24]} Kf2 {[%emt 0:00:39]} 96. Kd3 {[%emt 0:00:29]} Kf3 {[%emt 0:00:12]} 97. Kd2 {[%emt 0:00:40]} Rf5 {[%emt 0:00:43]} 98. Ke1 {[%emt 0:00:34]} Rf7 {[%emt 0:00:22]} 99. Kd2 {[%emt 0:00:32]} Rd7+ {[%emt 0:00:28]} 100. Ke1 {[%emt 0:00:14]} Rd5 {[%emt 0:00:05]} 101. Bh6 {[%emt 0:00:08]} Rd6 {[%emt 0:01:20]} 102. Bg5 {[%emt 0:00:05]} Re6+ {[%emt 0:00:10]} 103. Kd2 {[%emt 0:00:27]} Ke4 {[%emt 0:00:23]} 104. Ke2 {[%emt 0:00:09]} Ra6 {[%emt 0:00:14]} 105. Ke1 {[%emt 0:00:14]} Ra2 {[%emt 0:00:12]} 106. Kf1 {[%emt 0:01:12]} Ra3 {[%emt 0:00:45]} 107. Ke2 {[%emt 0:00:11]} Rf3 {[%emt 0:00:18]} 108. Bh6 {[%emt 0:00:40]} Rb3 {[%emt 0:00:57]} 109. Bg5 {[%emt 0:00:07]} Rh3 {[%emt 0:00:32]} 110. Kd2 {[%emt 0:00:19]} Rh2+ {[%emt 0:00:15]} 111. Ke1 {[%emt 0:00:17]} Rh3 {[%emt 0:01:04]} 112. Ke2 {[%emt 0:00:10]} Rf3 {[%emt 0:00:14]} 113. Kd2 {[%emt 0:00:13]} Rxf4 {[%emt 0:00:57]} 114. Bxf4 {[%emt 0:00:06]} Kxf4 {[%emt 0:00:02]} 115. Ke2 {[%emt 0:00:05]} Kg3 {[%emt 0:00:07]} 116. Kf1 {[%emt 0:00:04]} Kxh4 {[%emt 0:00:09]} 117. Kg2 {[%emt 0:00:04]} Kg4 {[%emt 0:00:09]} 118. Kh2 {[%emt 0:00:04]} h4 {[%emt 0:00:05]} 119. Kg2 {[%emt 0:00:04]} h3+ {[%emt 0:00:06]} 120. Kh2 {[%emt 0:00:03]} Kf5 {[%emt 0:00:26]} 121. Kxh3 {[%emt 0:00:51]} 1/2-1/2

[Event "Niedersachsen-ch Meister 2024"]
[Site "Verden Aller"]
[Date "2024.01.06"]
[Round "6.4"]
[White "Elsner, Robert"]
[Black "Stelmaszyk, Nico"]
[Result "0-1"]
[ECO "E05"]
[WhiteElo "2030"]
[BlackElo "2363"]
[Annotator "ChessBase"]
[PlyCount "84"]
[EventDate "2024.01.01"]
[EventType "swiss"]
[EventCountry "GER"]
[SourceTitle "playchess.com"]
[Source "ChessBase"]
[SourceQuality "1"]
[TimeControl "40/5400+30:1800+30"]

1. d4 {[%emt 0:00:37]} d5 {[%emt 0:00:17]} 2. c4 {[%emt 0:00:06]} e6 {[%emt 0:00:04]} 3. Nf3 {[%emt 0:01:29]} Nf6 {[%emt 0:00:06]} 4. g3 {[%emt 0:00:08]} Be7 {[%emt 0:00:04]} 5. Bg2 {[%emt 0:00:08]} O-O {[%emt 0:00:05]} 6. O-O {[%emt 0:00:06]} dxc4 {[%emt 0:00:05]} 7. Qc2 {[%emt 0:00:12]} b6 {[%emt 0:00:06]} 8. Bg5 {[%emt 0:00:44]} Nd5 {[%emt 0:00:11]} 9. Bxe7 {[%emt 0:01:13]} Qxe7 {[%emt 0:00:05]} 10. Qxc4 {[%emt 0:09:04]} Ba6 {[%emt 0:04:39]} 11. Qc2 {[%emt 0:00:22]} c5 {[%emt 0:01:04]} 12. Nc3 {[%emt 0:07:17]} Nc6 {[%emt 0:25:13]} 13. Nxd5 {[%emt 0:05:50]} exd5 {[%emt 0:00:07]} 14. Rfe1 {[%emt 0:00:10]} c4 {[%emt 0:04:20]} 15. Rad1 {[%emt 0:20:02]} Qd6 {[%emt 0:05:21]} 16. Ne5 {[%emt 0:05:01]} Na5 {[%emt 0:08:33]} 17. h4 {[%emt 0:11:44]} Bb7 {[%emt 0:06:18]} 18. h5 {[%emt 0:01:55]} Rfe8 {[%emt 0:03:15]} 19. Bf3 {[%emt 0:04:33]} Re7 {[%emt 0:03:03]} 20. Kg2 {[%emt 0:02:19]} Rae8 {[%emt 0:01:11]} 21. h6 {[%emt 0:03:47]} f6 {[%emt 0:05:31]} 22. Ng4 {[%emt 0:01:43]} g6 {[%emt 0:00:14]} 23. Rh1 {[%emt 0:02:31]} Nc6 {[%emt 0:05:31]} 24. Ne3 {[%emt 0:01:00]} Nd8 {[%emt 0:27:07]} 25. Rh4 {[%emt 0:01:52]} Nf7 {[%emt 0:00:00]} 26. Rdh1 {[%emt 0:02:04]} Kh8 {[%emt 0:00:00]} 27. Rf4 {[%emt 0:05:21]} b5 {[%emt 0:00:00]} 28. Ng4 {[%emt 0:02:40]} Re6 {[%emt 0:00:00]} 29. Ne3 {[%emt 0:01:11]} a5 {[%emt 0:00:00]} 30. Qb1 {[%emt 0:04:02]} Bc6 {[%emt 0:00:00]} 31. Qc2 {[%emt 0:00:07]} a4 {[%emt 0:00:00]} 32. a3 {[%emt 0:01:17]} Rxe3 {[%emt 0:00:00]} 33. fxe3 {[%emt 0:00:11]} Rxe3 {[%emt 0:00:00]} 34. Rg4 {[%emt 0:01:57]} g5 {[%emt 0:00:00]} 35. Kf2 {[%emt 0:01:55]} Re8 {[%emt 0:00:00]} 36. Qf5 {[%emt 0:01:40]} Qe6 {[%emt 0:01:11]} 37. Qxe6 {[%emt 0:01:53]} Rxe6 {[%emt 0:00:05]} 38. e4 {[%emt 0:00:21]} dxe4 {[%emt 0:00:53]} 39. d5 {[%emt 0:00:02]} Bxd5 {[%emt 0:00:15]} 40. Rd1 {[%emt 0:00:01]} Bc6 {[%emt 0:01:26]} 41. Bxe4 {[%emt 0:31:52]} Bxe4 {[%emt 0:04:16]} 42. Rxg5 {[%emt 0:00:00]} fxg5 {[%emt 0:00:32]} 0-1

[Event "Niedersachsen-ch Meister 2024"]
[Site "Verden Aller"]
[Date "2024.01.06"]
[Round "6.5"]
[White "Knuedel, Torben"]
[Black "von Mettenheim, Johannes"]
[Result "1-0"]
[ECO "B12"]
[WhiteElo "2287"]
[BlackElo "2284"]
[Annotator "RC"]
[PlyCount "59"]
[EventDate "2024.01.01"]
[EventType "swiss"]
[EventCountry "GER"]
[SourceTitle "playchess.com"]
[Source "ChessBase"]
[SourceQuality "1"]
[TimeControl "40/5400+30:1800+30"]

1. e4 {[%emt 0:00:03]} c6 {[%emt 0:00:08]} 2. d4 {[%emt 0:00:05]} d5 {[%emt 0:00:04]} 3. f3 {[%emt 0:00:05]} Qb6 {[%emt 0:00:43]} 4. a4 {[%emt 0:02:24]} a5 {[%emt 0:04:38]} 5. exd5 {[%emt 0:02:24]} cxd5 {[%emt 0:00:05]} 6. Nc3 {[%emt 0:01:18]} Nf6 {[%emt 0:01:10]} 7. Bd3 {[%emt 0:03:28]} Nc6 {[%emt 0:07:54]} 8. Nge2 {[%emt 0:01:03]} e6 {[%emt 0:12:55]} 9. Nb5 {[%emt 0:02:15]} Na7 {[%emt 0:04:31]} 10. Nec3 {[%emt 0:06:47]} Bb4 {[%emt 0:02:10]} 11. O-O {[%emt 0:02:55]} O-O {[%emt 0:01:09]} 12. Bg5 {[%emt 0:04:11]} Ne8 {[%emt 0:06:02]} 13. f4 {[%emt 0:09:56]} Nc7 {[%emt 0:04:24]} 14. Nxc7 {[%emt 0:04:31]} Qxc7 {[%emt 0:00:57]} 15. Bf6 {[%emt 0:08:08]} g6 {[%emt 0:15:22]} 16. f5 {[%emt 0:13:35]} Be7 {[%emt 0:12:09]} 17. Bxe7 {[%emt 0:01:47]} Qxe7 {[%emt 0:00:06]} 18. f6 {[%emt 0:00:59]} Qb4 {[%emt 0:00:05]} 19. Qg4 {[%emt 0:09:50]} Rd8 {[%emt 0:03:21]} 20. Qg5 {[%emt 0:04:37]} Qxd4+ {[%emt 0:04:21]} 21. Rf2 {[%emt 0:00:11]} Qc5 {[%emt 0:00:29]} 22. h4 {[%emt 0:03:10]} b6 {[%emt 0:03:19]} 23. h5 {[%emt 0:02:06]} d4 {[%emt 0:00:19]} 24. Ne4 {[%emt 0:03:21]} Qxg5 {[%emt 0:00:08]} 25. Nxg5 {[%emt 0:00:06]} Bb7 {[%emt 0:03:26]} 26. hxg6 {[%emt 0:01:04]} hxg6 {[%emt 0:00:11]} 27. Bxg6 {[%emt 0:00:56]} fxg6 {[%emt 0:01:43]} 28. f7+ {[%emt 0:00:11]} Kf8 {[%emt 0:01:08]} 29. Nxe6+ {[%emt 0:00:08]} Ke7 {[%emt 0:00:04]} 30. Nxd8 {[%emt 0:00:29]} 1-0

[Event "Niedersachsen-ch Meister 2024"]
[Site "Verden Aller"]
[Date "2024.01.06"]
[Round "6.6"]
[White "Polster, Christian"]
[Black "Mueer, Sebastian"]
[Result "1/2-1/2"]
[ECO "D42"]
[WhiteElo "2244"]
[BlackElo "2189"]
[Annotator "RC"]
[PlyCount "104"]
[EventDate "2024.01.01"]
[EventType "swiss"]
[EventCountry "GER"]
[SourceTitle "playchess.com"]
[Source "ChessBase"]
[SourceQuality "1"]
[TimeControl "40/5400+30:1800+30"]

1. e4 {[%emt 1:31:00]} c5 {[%emt 0:07:49]} 2. Nf3 {[%emt 0:00:00]} e6 {[%emt 0:00:51]} 3. c3 {[%emt 0:00:00]} d5 {[%emt 0:01:11]} 4. exd5 {[%emt 0:00:00]} Qxd5 {[%emt 0:00:08]} 5. d4 {[%emt 0:00:00]} Nf6 {[%emt 0:00:56]} 6. Bd3 {[%emt 0:00:00]} cxd4 {[%emt 0:01:23]} 7. cxd4 {[%emt 0:00:00]} Nc6 {[%emt 0:01:10]} 8. Nc3 {[%emt 0:00:00]} Qd8 {[%emt 0:00:31]} 9. O-O {[%emt 0:00:00]} Be7 {[%emt 0:00:06]} 10. a3 {[%emt 0:00:00]} O-O {[%emt 0:01:21]} 11. Bc2 {[%emt 0:00:00]} b6 {[%emt 0:02:52]} 12. Qd3 {[%emt 0:00:00]} Bb7 {[%emt 0:01:36]} 13. Bg5 {[%emt 0:00:00]} g6 {[%emt 0:00:12]} 14. Rad1 {[%emt 0:00:00]} Nd5 {[%emt 0:07:25]} 15. Bh6 {[%emt 0:00:00]} Re8 {[%emt 0:09:10]} 16. Ne4 {[%emt 0:00:00]} Rc8 {[%emt 0:03:36]} 17. Bb3 {[%emt 0:00:00]} Na5 {[%emt 0:14:01]} 18. Ba4 {[%emt 0:00:00]} Bc6 {[%emt 0:03:47]} 19. Bc2 {[%emt 0:00:00]} Nf6 {[%emt 0:02:11]} 20. Nxf6+ {[%emt 0:00:00]} Bxf6 {[%emt 0:00:22]} 21. Ne5 {[%emt 0:00:00]} Qd5 {[%emt 0:16:10]} 22. Nxc6 {[%emt 0:00:00]} Nxc6 {[%emt 0:00:26]} 23. Bb3 {[%emt 0:00:00]} Qxd4 {[%emt 0:03:59]} 24. Qf3 {[%emt 0:00:59]} Qh4 {[%emt 0:03:15]} 25. Be3 {[%emt 0:08:27]} Bxb2 {[%emt 0:01:45]} 26. g3 {[%emt 0:00:47]} Qf6 {[%emt 0:00:58]} 27. Qxf6 {[%emt 0:01:07]} Bxf6 {[%emt 0:00:02]} 28. Ba4 {[%emt 0:00:53]} Red8 {[%emt 0:06:33]} 29. Rxd8+ {[%emt 0:00:23]} Nxd8 {[%emt 0:00:57]} 30. Rd1 {[%emt 0:00:21]} Nc6 {[%emt 0:09:10]} 31. Rd7 {[%emt 0:00:26]} Kg7 {[%emt 0:01:16]} 32. h4 {[%emt 0:00:58]} h5 {[%emt 0:00:10]} 33. Bb3 {[%emt 0:01:02]} Kg8 {[%emt 0:00:01]} 34. Ba4 {[%emt 0:00:20]} Bc3 {[%emt 0:01:18]} 35. Kg2 {[%emt 0:00:24]} Ne5 {[%emt 0:00:38]} 36. Rxa7 {[%emt 0:00:16]} Nc4 {[%emt 0:00:04]} 37. Bc1 {[%emt 0:00:31]} Bb2 {[%emt 0:00:58]} 38. Bd7 {[%emt 0:00:52]} Rb8 {[%emt 0:00:32]} 39. Bxb2 {[%emt 0:00:37]} Nxb2 {[%emt 0:00:01]} 40. Bb5 {[%emt 0:00:20]} Nd1 {[%emt 0:00:39]} 41. Rc7 {[%emt 0:30:25]} Rd8 {[%emt 0:01:39]} 42. Rc2 {[%emt 0:00:00]} e5 {[%emt 0:05:30]} 43. Kf3 {[%emt 0:00:00]} Rd5 {[%emt 0:02:25]} 44. a4 {[%emt 0:00:00]} Rd6 {[%emt 0:02:19]} 45. Ke2 {[%emt 0:00:00]} e4 {[%emt 0:02:08]} 46. Rc1 {[%emt 0:00:00]} Nb2 {[%emt 0:04:37]} 47. Rb1 {[%emt 0:00:00]} Nd3 {[%emt 0:00:33]} 48. Bxd3 {[%emt 0:00:00]} exd3+ {[%emt 0:00:27]} 49. Kd2 {[%emt 0:00:00]} Kg7 {[%emt 0:05:28]} 50. Rb3 {[%emt 0:00:00]} Rd4 {[%emt 0:06:29]} 51. Rxb6 {[%emt 0:00:24]} Rxa4 {[%emt 0:00:06]} 52. Kxd3 {[%emt 0:00:10]} Ra3+ {[%emt 0:00:09]} 1/2-1/2

[Event "Niedersachsen-ch Meister 2024"]
[Site "Verden Aller"]
[Date "2024.01.06"]
[Round "6.7"]
[White "Pubantz, Jan"]
[Black "Sauer, Tim"]
[Result "1-0"]
[ECO "B13"]
[WhiteElo "2288"]
[BlackElo "2126"]
[Annotator "RC"]
[PlyCount "61"]
[EventDate "2024.01.01"]
[EventType "swiss"]
[EventCountry "GER"]
[SourceTitle "playchess.com"]
[Source "ChessBase"]
[SourceQuality "1"]
[TimeControl "40/5400+30:1800+30"]

1. e4 {[%emt 0:10:09]} c6 {[%emt 0:02:17]} 2. d4 {[%emt 0:00:50]} d5 {[%emt 0:00:06]} 3. exd5 {[%emt 0:01:08]} cxd5 {[%emt 0:00:07]} 4. Bd3 {[%emt 0:00:06]} Nc6 {[%emt 0:00:08]} 5. c3 {[%emt 0:00:14]} Nf6 {[%emt 0:00:08]} 6. h3 {[%emt 0:01:14]} Qc7 {[%emt 0:01:40]} 7. Nf3 {[%emt 0:01:14]} g6 {[%emt 0:02:36]} 8. Qc2 {[%emt 0:06:19]} Bg7 {[%emt 0:01:33]} 9. O-O {[%emt 0:01:03]} O-O {[%emt 0:00:13]} 10. Be3 {[%emt 0:09:56]} Nh5 {[%emt 0:06:43]} 11. Qc1 {[%emt 0:05:47]} e5 {[%emt 0:11:28]} 12. dxe5 {[%emt 0:01:08]} Nxe5 {[%emt 0:00:06]} 13. Be2 {[%emt 0:09:40]} Nc4 {[%emt 0:17:41]} 14. Bg5 {[%emt 0:05:08]} Re8 {[%emt 0:02:23]} 15. Nd4 {[%emt 0:09:20]} Bxd4 {[%emt 0:20:46]} 16. Bxh5 {[%emt 0:02:55]} Bg7 {[%emt 0:00:04]} 17. Bf3 {[%emt 0:02:57]} Be6 {[%emt 0:00:35]} 18. Nd2 {[%emt 0:03:08]} Qb6 {[%emt 0:05:19]} 19. Nxc4 {[%emt 0:03:14]} dxc4 {[%emt 0:00:12]} 20. Rd1 {[%emt 0:00:26]} Bf5 {[%emt 0:06:15]} 21. Qd2 {[%emt 0:03:29]} Rac8 {[%emt 0:09:25]} 22. Re1 {[%emt 0:02:34]} Bd3 {[%emt 0:06:15]} 23. Rxe8+ {[%emt 0:04:26]} Rxe8 {[%emt 0:00:05]} 24. Re1 {[%emt 0:01:52]} Rxe1+ {[%emt 0:05:50]} 25. Qxe1 {[%emt 0:00:01]} Qb5 {[%emt 0:00:30]} 26. Qe7 {[%emt 0:03:25]} h6 {[%emt 0:00:29]} 27. Bc1 {[%emt 0:02:28]} Qa4 {[%emt 0:00:18]} 28. Bd5 {[%emt 0:04:29]} Kh7 {[%emt 0:00:39]} 29. Qxf7 {[%emt 0:00:34]} g5 {[%emt 0:00:29]} 30. Be3 {[%emt 0:01:51]} Qd1+ {[%emt 0:00:37]} 31. Kh2 {[%emt 0:00:08]} 1-0

[Event "Niedersachsen-ch Meister 2024"]
[Site "Verden Aller"]
[Date "2024.01.06"]
[Round "6.8"]
[White "Riemay, David"]
[Black "Bargsten, Justus"]
[Result "1-0"]
[ECO "C26"]
[WhiteElo "2213"]
[BlackElo "2216"]
[Annotator "ChessBase"]
[PlyCount "81"]
[EventDate "2024.01.01"]
[EventType "swiss"]
[EventCountry "GER"]
[SourceTitle "playchess.com"]
[Source "ChessBase"]
[SourceQuality "1"]
[TimeControl "40/5400+30:1800+30"]

1. e4 {[%emt 0:00:08]} e5 {[%emt 0:00:28]} 2. Nc3 {[%emt 0:02:00]} Nf6 {[%emt 0:00:06]} 3. d4 {[%emt 0:02:33]} exd4 {[%emt 0:00:05]} 4. Qxd4 {[%emt 0:00:02]} Nc6 {[%emt 0:00:08]} 5. Qd3 {[%emt 0:00:03]} Bc5 {[%emt 0:00:26]} 6. Bf4 {[%emt 0:01:14]} d6 {[%emt 0:00:34]} 7. Qd2 {[%emt 0:02:03]} Be6 {[%emt 0:03:37]} 8. O-O-O {[%emt 0:03:15]} O-O {[%emt 0:00:34]} 9. f3 {[%emt 0:04:50]} Nd7 {[%emt 0:08:31]} 10. Bg5 {[%emt 0:09:21]} Qe8 {[%emt 0:09:42]} 11. Nh3 {[%emt 0:04:20]} Nb6 {[%emt 0:16:06]} 12. Nf4 {[%emt 0:05:42]} Ne5 {[%emt 0:05:14]} 13. Nfd5 {[%emt 0:07:45]} Bxd5 {[%emt 0:06:19]} 14. Nxd5 {[%emt 0:06:39]} Qa4 {[%emt 0:02:00]} 15. Kb1 {[%emt 0:01:31]} c6 {[%emt 0:06:20]} 16. Ne7+ {[%emt 0:11:00]} Kh8 {[%emt 0:00:08]} 17. Nf5 {[%emt 0:01:06]} f6 {[%emt 0:03:46]} 18. Bf4 {[%emt 0:04:05]} d5 {[%emt 0:02:56]} 19. Bxe5 {[%emt 0:01:45]} fxe5 {[%emt 0:00:07]} 20. Qg5 {[%emt 0:00:24]} Rf7 {[%emt 0:02:10]} 21. Bd3 {[%emt 0:01:13]} d4 {[%emt 0:02:47]} 22. f4 {[%emt 0:01:06]} Ba3 {[%emt 0:08:02]} 23. Kc1 {[%emt 0:14:30]} Bb4 {[%emt 0:09:53]} 24. a3 {[%emt 0:05:41]} Bf8 {[%emt 0:06:23]} 25. fxe5 {[%emt 0:01:09]} Re8 {[%emt 0:00:09]} 26. Nd6 {[%emt 0:02:02]} Bxd6 {[%emt 0:00:29]} 27. exd6 {[%emt 0:00:04]} Nc4 {[%emt 0:00:21]} 28. Rhf1 {[%emt 0:00:50]} Ne5 {[%emt 0:02:32]} 29. Rxf7 {[%emt 0:00:45]} Nxf7 {[%emt 0:00:02]} 30. d7 {[%emt 0:00:25]} Rg8 {[%emt 0:00:19]} 31. Qe7 {[%emt 0:01:11]} Nd8 {[%emt 0:00:26]} 32. e5 {[%emt 0:00:39]} c5 {[%emt 0:00:47]} 33. Be4 {[%emt 0:03:05]} d3 {[%emt 0:00:33]} 34. Bxd3 {[%emt 0:00:25]} Qf4+ {[%emt 0:00:32]} 35. Kb1 {[%emt 0:00:16]} Nc6 {[%emt 0:00:04]} 36. Qxc5 {[%emt 0:02:29]} Qg4 {[%emt 0:00:18]} 37. Re1 {[%emt 0:00:29]} Qxd7 {[%emt 0:00:14]} 38. e6 {[%emt 0:00:12]} Qc7 {[%emt 0:00:27]} 39. e7 {[%emt 0:01:53]} Qd7 {[%emt 0:00:14]} 40. Bxh7 {[%emt 0:00:20]} Qd2 {[%emt 0:00:21]} 41. e8=Q {[%emt 0:31:51]} 1-0

[Event "Niedersachsen-ch Meister 2024"]
[Site "Verden Aller"]
[Date "2024.01.06"]
[Round "6.9"]
[White "Heinemann, Ernst"]
[Black "Reimer, Philip"]
[Result "1/2-1/2"]
[ECO "B40"]
[WhiteElo "2033"]
[BlackElo "2152"]
[Annotator "RC"]
[PlyCount "53"]
[EventDate "2024.01.01"]
[EventType "swiss"]
[EventCountry "GER"]
[SourceTitle "playchess.com"]
[Source "ChessBase"]
[SourceQuality "1"]
[TimeControl "40/5400+30:1800+30"]

1. e4 {[%emt 0:00:11]} c5 {[%emt 0:00:14]} 2. Nf3 {[%emt 0:00:07]} e6 {[%emt 0:00:04]} 3. b3 {[%emt 0:01:31]} b6 {[%emt 0:00:19]} 4. d4 {[%emt 0:01:35]} cxd4 {[%emt 0:00:53]} 5. Nxd4 {[%emt 0:00:36]} Bb7 {[%emt 0:02:25]} 6. Bd3 {[%emt 0:02:17]} Bc5 {[%emt 0:03:34]} 7. Be3 {[%emt 0:04:04]} Ne7 {[%emt 0:07:48]} 8. O-O {[%emt 0:01:48]} O-O {[%emt 0:03:06]} 9. Nd2 {[%emt 0:06:04]} e5 {[%emt 0:05:09]} 10. Nf5 {[%emt 0:05:27]} Nxf5 {[%emt 0:00:13]} 11. exf5 {[%emt 0:02:44]} d5 {[%emt 0:03:03]} 12. Bxc5 {[%emt 0:04:34]} bxc5 {[%emt 0:00:08]} 13. c4 {[%emt 0:00:24]} d4 {[%emt 0:08:14]} 14. Be4 {[%emt 0:03:03]} Qc7 {[%emt 0:04:41]} 15. f6 {[%emt 0:02:34]} g6 {[%emt 0:00:34]} 16. f4 {[%emt 0:07:23]} Nd7 {[%emt 0:12:53]} 17. fxe5 {[%emt 0:10:28]} Nxe5 {[%emt 0:00:47]} 18. Qe1 {[%emt 0:44:40]} Rae8 {[%emt 0:27:11]} 19. Qh4 {[%emt 0:00:00]} h5 {[%emt 0:00:22]} 20. Bxb7 {[%emt 0:00:00]} Qxb7 {[%emt 0:00:22]} 21. Rf5 {[%emt 0:00:00]} Qc6 {[%emt 0:09:41]} 22. Ne4 {[%emt 0:00:00]} Re6 {[%emt 0:03:39]} 23. Qf4 {[%emt 0:00:00]} Ng4 {[%emt 0:01:46]} 24. Nxc5 {[%emt 0:00:00]} Rxf6 {[%emt 0:00:42]} 25. Rxf6 {[%emt 0:00:00]} Qxf6 {[%emt 0:01:32]} 26. Qxf6 {[%emt 0:00:00]} Nxf6 {[%emt 0:00:02]} 27. Rd1 {[%emt 0:00:00]} 1/2-1/2